bitfinex/quotes_BTCUSD_20220201
["timestamp","ask_amount","ask_price","bid_price","bid_amount"]
[1643679082166,0.15499678,38338.0,38335.0,0.4955]
[1643679083164,0.22022373,38338.0,38335.0,0.4955]
[1643679083966,0.11522695,38338.0,38335.0,0.4955]
[1643679085521,0.09868944,38337.0,38335.0,0.4955]
[1643679085720,0.26613798,38336.0,38332.0,0.20165566]
[1643679085922,0.3813723,38336.0,38331.0,0.3675]
[1643679096265,0.11523432,38336.0,38331.0,0.3675]
[1643679096466,0.05,38336.0,38331.0,0.3675]
[1643679096666,0.05,38337.0,38333.0,0.31089129]
[1643679096865,0.06522575,38338.0,38334.0,0.065225]
[1643679097066,0.11522575,38338.0,38334.0,0.065225]
[1643679097266,0.06522575,38338.0,38334.0,0.065225]
[1643679097467,0.06522575,38338.0,38333.0,0.31089129]
[1643679097666,0.06522575,38338.0,38336.0,0.08670598]
[1643679098070,0.06522575,38338.0,38331.0,0.432728]
[1643679098071,0.06522575,38338.0,38332.0,0.065228]
[1643679098271,0.06522575,38338.0,38331.0,0.3675]
[1643679098272,0.30473201,38335.0,38331.0,0.3675]
[1643679098470,0.065237,38334.0,38331.0,0.3575]
[1643679099070,0.065237,38334.0,38332.0,0.08245637]
[1643679099272,0.065237,38334.0,38331.0,0.3575]
[1643679100412,0.065237,38334.0,38332.0,0.08008967]
[1643679101316,0.115237,38334.0,38332.0,0.08008967]
[1643679101512,0.065237,38334.0,38332.0,0.08008967]
[1643679102314,0.115237,38334.0,38330.0,0.00104888]
[1643679102515,0.31678564,38334.0,38330.0,0.00104888]
[1643679102714,0.115237,38334.0,38327.0,0.4955]
[1643679103017,0.065235,38333.0,38330.0,0.00104888]
[1643679103463,0.065235,38333.0,38331.0,0.10331086]
[1643679108314,0.065235,38333.0,38330.0,0.00104888]
[1643679108714,0.065235,38333.0,38327.0,0.4955]
[1643679108915,0.065235,38333.0,38330.0,0.0010489]
[1643679109814,0.065235,38333.0,38331.0,0.10488701]
[1643679110617,0.11523165,38334.0,38331.0,0.10488701]
[1643679110817,0.16523165,38334.0,38331.0,0.10488701]
[1643679111066,0.11523165,38334.0,38331.0,0.10488701]
[1643679111667,0.06523165,38334.0,38331.0,0.10488701]
[1643679111868,0.11523165,38334.0,38331.0,0.10488701]
[1643679112065,0.11523165,38334.0,38331.0,0.17011801]
[1643679112365,0.11523165,38334.0,38331.0,0.23535001]
[1643679113165,0.11523165,38334.0,38331.0,0.17011901]
[1643679116117,0.11523165,38334.0,38331.0,0.23535101]
[1643679117119,0.11523165,38334.0,38331.0,0.130464]
[1643679117322,0.06523751,38333.0,38328.0,0.195695]
[1643679117521,0.06523751,38333.0,38330.0,0.00104888]
[1643679117722,0.06523751,38333.0,38330.0,0.06628388]
[1643679118122,0.06523751,38333.0,38330.0,0.00104888]
[1643679118322,0.06523751,38333.0,38331.0,0.07503463]
[1643679119165,0.06523751,38333.0,38330.0,0.0010489]
[1643679119568,0.06523751,38333.0,38327.0,0.065239]
[1643679119767,0.06523751,38333.0,38330.0,0.0010489]
[1643679120768,0.06523751,38333.0,38329.0,0.07913435]
[1643679120968,0.06523751,38333.0,38330.0,0.0010489]
[1643679121571,0.06515664,38333.0,38330.0,0.0010489]
[1643679121971,0.06515664,38333.0,38329.0,0.07913435]
[1643679122225,0.06515664,38333.0,38330.0,0.0010489]
[1643679123318,0.06515664,38333.0,38329.0,0.07913435]
[1643679123518,0.06515664,38333.0,38330.0,0.0010489]
[1643679124420,0.06515664,38333.0,38329.0,0.07913435]
[1643679124621,0.06515664,38333.0,38330.0,0.0010489]
[1643679125619,0.06515664,38333.0,38328.0,0.10388421]
[1643679125822,0.06515664,38333.0,38330.0,0.0010489]
[1643679126566,0.06515664,38333.0,38330.0,0.00095686]
[1643679126968,0.06515664,38333.0,38331.0,0.065234]
[1643679127374,0.06515664,38333.0,38328.0,0.130472]
[1643679127569,0.06515664,38333.0,38326.0,0.0031]
[1643679127968,0.06515664,38333.0,38327.0,0.065241]
[1643679128970,0.06515664,38333.0,38329.0,0.09036318]
[1643679129171,0.06515664,38333.0,38329.0,0.15560218]
[1643679129572,0.06515664,38333.0,38329.0,0.15624441]
[1643679130417,0.06515664,38333.0,38329.0,0.06588123]
[1643679130619,0.06515664,38333.0,38329.0,0.065239]
[1643679130818,0.06515664,38333.0,38329.0,0.06588123]
[1643679131420,0.06515664,38333.0,38331.0,0.065236]
[1643679132820,0.06515664,38333.0,38330.0,0.00064221]
[1643679133020,0.06515664,38333.0,38326.0,0.0031]
[1643679133321,0.06515664,38333.0,38330.0,0.00128442]
[1643679133769,0.06515664,38333.0,38327.0,0.07973004]
[1643679134068,0.24663192,38328.0,38326.0,0.0031]
[1643679134269,0.29663192,38328.0,38326.0,0.068343]
[1643679134870,0.05,38328.0,38326.0,0.068343]
[1643679135071,0.05,38328.0,38326.0,0.0031]
[1643679135273,0.11524379,38329.0,38326.0,0.0031]
[1643679135872,0.36853005,38329.0,38326.0,0.0031]
[1643679138036,0.36853005,38329.0,38326.0,0.00437815]
[1643679138436,0.43377605,38329.0,38326.0,0.00437815]
[1643679138834,0.43377605,38329.0,38322.0,0.4895]
[1643679139034,0.06525016,38327.0,38322.0,0.4895]
[1643679139234,0.49329205,38327.0,38326.0,0.00127815]
[1643679139439,0.71384287,38327.0,38322.0,0.3691]
[1643679139635,0.41279087,38327.0,38322.0,0.3691]
[1643679140036,0.47804067,38327.0,38322.0,0.3691]
[1643679140236,0.37625216,38327.0,38322.0,0.3691]
[1643679142081,0.37625216,38327.0,38322.0,0.434345]
[1643679142881,0.37625216,38327.0,38323.0,0.00126547]
[1643679143881,0.37625216,38327.0,38322.0,0.434345]
[1643679144083,0.37625216,38327.0,38323.0,0.00126545]
[1643679145118,0.37625216,38327.0,38322.0,0.3691]
[1643679145319,0.37625216,38327.0,38323.0,0.00126545]
[1643679146318,0.37625216,38327.0,38322.0,0.3691]
[1643679146319,0.13049881,38325.0,38322.0,0.3691]
[1643679146518,0.18049881,38325.0,38323.0,0.00126545]
[1643679147419,0.18049881,38325.0,38322.0,0.3691]
[1643679147620,0.18049881,38325.0,38322.0,0.37036548]
[1643679148671,0.18049881,38325.0,38322.0,0.3691]
[1643679148871,0.18049881,38325.0,38322.0,0.3703655]
[1643679149874,0.18049881,38325.0,38322.0,0.3691]
[1643679149875,0.26691071,38324.0,38322.0,0.3691]
[1643679150077,0.20301305,38323.0,38322.0,0.3703655]
[1643679150273,0.05,38323.0,38322.0,0.3703655]
[1643679150474,0.05,38323.0,38322.0,0.0032655]
[1643679150673,0.065254,38324.0,38322.0,0.0032655]
[1643679151082,0.065254,38324.0,38322.0,0.002]
[1643679158071,0.06524882,38324.0,38322.0,0.002]
[1643679159373,0.13050182,38324.0,38322.0,0.002]
[1643679162422,0.06516656,38324.0,38322.0,0.002]
[1643679163324,0.06516656,38324.0,38321.0,0.00026551]
[1643679163570,0.13042456,38324.0,38321.0,0.00026551]
[1643679163772,0.18042456,38324.0,38321.0,0.00026551]
[1643679164374,0.06525665,38322.0,38317.0,0.002]
[1643679164771,0.065257,38323.0,38317.0,0.002]
[1643679164772,0.13051329,38321.0,38317.0,0.002]
[1643679164974,0.18051329,38321.0,38317.0,0.002]
[1643679165673,0.18051329,38321.0,38317.0,0.00263157]
[1643679166273,0.24576926,38321.0,38317.0,0.00263157]
[1643679166676,0.24576926,38321.0,38317.0,0.002]
[1643679166873,0.24576926,38321.0,38317.0,0.00326065]
[1643679167073,0.19576926,38321.0,38317.0,0.00326065]
[1643679167913,0.19576926,38321.0,38317.0,0.002]
[1643679168113,0.19576926,38321.0,38317.0,0.00326065]
[1643679168313,0.24576926,38321.0,38317.0,0.00326065]
[1643679169014,0.24576926,38321.0,38317.0,0.002]
[1643679169217,0.24576926,38321.0,38317.0,0.00326065]
[1643679170215,0.24576926,38321.0,38317.0,0.002]
[1643679170414,0.24576926,38321.0,38317.0,0.20769292]
[1643679170617,0.24576926,38321.0,38317.0,0.20817755]
[1643679170815,0.24576926,38321.0,38317.0,0.00326065]
[1643679171467,0.24576926,38321.0,38317.0,0.002]
[1643679171666,0.24576926,38321.0,38317.0,0.00326065]
[1643679172766,0.24576926,38321.0,38317.0,0.002]
[1643679172966,0.24576926,38321.0,38317.0,0.00326065]
[1643679173967,0.24576926,38321.0,38317.0,0.002]
[1643679174167,0.24576926,38321.0,38317.0,0.00326065]
[1643679176321,0.24576926,38321.0,38317.0,0.002]
[1643679176522,0.24576926,38321.0,38317.0,0.00326065]
[1643679176720,0.05,38320.0,38317.0,0.00326065]
[1643679177522,0.05,38320.0,38317.0,0.002]
[1643679177723,0.05,38320.0,38317.0,0.00326066]
[1643679178688,0.24576926,38321.0,38317.0,0.002]
[1643679178889,0.24576926,38321.0,38317.0,0.00326066]
[1643679179789,0.24576926,38321.0,38318.0,0.065255]
[1643679180289,0.19576926,38321.0,38318.0,0.065255]
[1643679181392,0.19576926,38321.0,38318.0,0.06651563]
[1643679181592,0.24576926,38321.0,38318.0,0.06651563]
[1643679182417,0.24576926,38321.0,38318.0,0.065255]
[1643679182616,0.24576926,38321.0,38318.0,0.06651563]
[1643679183517,0.24576926,38321.0,38318.0,0.065255]
[1643679183717,0.24576926,38321.0,38318.0,0.06651563]
[1643679184822,0.24576926,38321.0,38318.0,0.065255]
[1643679185019,0.24576926,38321.0,38318.0,0.06651563]
[1643679185620,0.24570625,38321.0,38318.0,0.06651563]
[1643679188074,0.24570625,38321.0,38318.0,0.00126063]
[1643679188272,0.24570625,38321.0,38317.0,0.19816276]
[1643679188472,0.24570625,38321.0,38318.0,0.00126063]
[1643679189474,0.24570625,38321.0,38317.0,0.002]
[1643679189723,0.24570625,38321.0,38318.0,0.00126063]
[1643679190719,0.24570625,38321.0,38317.0,0.132509]
[1643679190918,0.24570625,38321.0,38318.0,0.00126063]
[1643679191519,0.24570625,38321.0,38319.0,0.065255]
[1643679200724,0.26266051,38321.0,38319.0,0.065255]
[1643679202871,0.05,38320.0,38319.0,0.065255]
[1643679206420,0.05,38320.0,38319.0,0.06518515]
[1643679206821,0.26266051,38321.0,38319.0,0.06518515]
[1643679207021,0.14746755,38321.0,38320.0,0.92531394]
[1643679207221,0.14746755,38321.0,38320.0,1.02531394]
[1643679207419,0.14746755,38321.0,38320.0,0.8]
[1643679207420,0.01695426,38321.0,38320.0,0.8]
[1643679208023,0.01695426,38321.0,38320.0,0.1]
[1643679208467,0.01695426,38321.0,38319.0,0.16644575]
[1643679208867,0.06695426,38321.0,38319.0,0.16644575]
[1643679209070,0.06695426,38321.0,38319.0,0.16518515]
[1643679209268,0.06695426,38321.0,38320.0,0.92305983]
[1643679209470,0.06695426,38321.0,38320.0,0.22305983]
[1643679213722,0.26269365,38321.0,38319.0,0.06616211]
[1643679213924,0.26269365,38321.0,38319.0,0.06518515]
[1643679214122,0.26269365,38321.0,38319.0,0.06622593]
[1643679215221,0.26269365,38321.0,38319.0,0.06518515]
[1643679216066,0.34102469,38321.0,38319.0,0.06518515]
[1643679216866,0.34102469,38321.0,38320.0,0.75439831]
[1643679217066,0.27577888,38321.0,38320.0,0.75439831]
[1643679217366,0.27577888,38321.0,38319.0,0.06518515]
[1643679217668,0.27577888,38321.0,38319.0,0.06621157]
[1643679217865,0.27577888,38321.0,38320.0,0.70302349]
[1643679218265,0.27577888,38321.0,38319.0,0.06621157]
[1643679218665,0.27577888,38321.0,38319.0,0.06518515]
[1643679227322,0.19744784,38321.0,38320.0,0.9026438]
[1643679227523,0.13220064,38321.0,38320.0,1.20536759]
[1643679228424,0.08220064,38321.0,38320.0,0.40272379]
[1643679228630,0.08220064,38321.0,38320.0,0.61512845]
[1643679229422,0.082108,38321.0,38320.0,1.11512845]
[1643679229624,0.082108,38321.0,38320.0,0.40272379]
[1643679229823,0.082108,38321.0,38320.0,0.30272379]
[1643679230024,0.132108,38321.0,38320.0,0.30272379]
[1643679230976,0.132108,38321.0,38320.0,0.5205547]
[1643679231176,0.132108,38321.0,38320.0,0.30272379]
[1643679232178,0.132108,38321.0,38319.0,0.06632985]
[1643679232377,0.132108,38321.0,38319.0,0.16632985]
[1643679233078,0.132108,38321.0,38320.0,0.92179157]
[1643679233378,0.132108,38321.0,38320.0,0.27179157]
[1643679233578,0.132108,38321.0,38320.0,0.49531587]
[1643679236323,0.132108,38321.0,38320.0,0.59531587]
[1643679247673,0.132108,38321.0,38320.0,0.37179157]
[1643679248672,0.132108,38321.0,38320.0,0.1]
[1643679248876,0.132108,38321.0,38319.0,0.16621451]
[1643679249075,0.127108,38321.0,38319.0,0.06621451]
[1643679249276,0.127108,38321.0,38319.0,0.16621451]
[1643679249729,0.127108,38321.0,38320.0,0.15270001]
[1643679249925,0.127108,38321.0,38319.0,0.16518515]
[1643679251324,0.122108,38321.0,38319.0,0.16518515]
[1643679251526,0.122108,38321.0,38319.0,0.06518515]
[1643679252224,0.05,38320.0,38319.0,0.06518515]
[1643679252425,0.05,38320.0,38318.0,0.19575]
[1643679252623,0.05,38320.0,38318.0,0.19677901]
[1643679253474,0.05,38320.0,38318.0,0.19575]
[1643679256479,0.05,38320.0,38318.0,0.29575]
[1643679257531,0.05,38320.0,38318.0,0.19575]
[1643679257734,0.04304716,38320.0,38318.0,0.29575]
[1643679258531,0.04304716,38320.0,38318.0,0.29075]
[1643679266334,0.22413358,38319.0,38318.0,0.1305]
[1643679266538,0.0519,38319.0,38317.0,0.0030291]
[1643679266934,0.0519,38319.0,38317.0,0.002]
[1643679267132,0.1019,38319.0,38317.0,0.002]
[1643679267332,0.1019,38319.0,38317.0,0.00302911]
[1643679267933,0.1019,38319.0,38318.0,0.09602527]
[1643679268482,0.1019,38319.0,38317.0,0.002]
[1643679272327,0.1019,38319.0,38317.0,0.09028286]
[1643679274530,0.05,38319.0,38317.0,0.09028286]
[1643679275235,0.06525967,38320.0,38318.0,0.27538835]
[1643679275432,0.06525967,38320.0,38319.0,0.23507792]
[1643679276276,0.06525967,38320.0,38319.0,0.54698413]
[1643679277075,0.06525967,38320.0,38319.0,0.23507792]
[1643679277276,0.11525967,38320.0,38319.0,0.23507792]
[1643679281430,0.06525967,38320.0,38319.0,0.23507792]
[1643679281627,0.06525967,38320.0,38318.0,0.06627809]
[1643679281828,0.0651693,38320.0,38318.0,0.06627809]
[1643679282428,0.0651693,38320.0,38318.0,0.065249]
[1643679282829,0.1151693,38320.0,38318.0,0.065249]
[1643679283976,0.1151693,38320.0,38319.0,0.08683545]
[1643679285479,0.1151693,38320.0,38318.0,0.00102909]
[1643679286079,0.1151693,38320.0,38317.0,0.002]
[1643679286280,0.1151693,38320.0,38317.0,0.0030291]
[1643679287331,0.1151693,38320.0,38317.0,0.002]
[1643679287531,0.1151693,38320.0,38317.0,0.00302911]
[1643679288530,0.1151693,38320.0,38317.0,0.002]
[1643679288729,0.1151693,38320.0,38317.0,0.00302911]
[1643679288932,0.1151693,38320.0,38317.0,0.06828311]
[1643679289629,0.1151693,38320.0,38317.0,0.067254]
[1643679289830,0.1151693,38320.0,38317.0,0.06828311]
[1643679290834,0.1151693,38320.0,38317.0,0.067254]
[1643679291081,0.1151693,38320.0,38317.0,0.06828311]
[1643679292080,0.1151693,38320.0,38317.0,0.067254]
[1643679292381,0.1151693,38320.0,38317.0,0.06828311]
[1643679293386,0.1151693,38320.0,38317.0,0.067254]
[1643679293583,0.1151693,38320.0,38317.0,0.06828311]
[1643679294584,0.1151693,38320.0,38317.0,0.067254]
[1643679294831,0.1151693,38320.0,38317.0,0.06828311]
[1643679295631,0.1151693,38320.0,38317.0,0.067254]
[1643679295830,0.1151693,38320.0,38317.0,0.06828311]
[1643679296933,0.389661,38320.0,38317.0,0.067254]
[1643679297132,0.389661,38320.0,38317.0,0.00302911]
[1643679298132,0.389661,38320.0,38317.0,0.002]
[1643679298331,0.389661,38320.0,38317.0,0.00302911]
[1643679299382,0.389661,38320.0,38317.0,0.002]
[1643679299681,0.389661,38320.0,38317.0,0.00302911]
[1643679300481,0.389661,38320.0,38317.0,0.002]
[1643679300682,0.389661,38320.0,38317.0,0.00302911]
[1643679301484,0.389661,38320.0,38317.0,0.06828411]
[1643679301682,0.389661,38320.0,38317.0,0.067255]
[1643679301983,0.389661,38320.0,38317.0,0.06828411]
[1643679302240,0.1151693,38320.0,38317.0,0.06828411]
[1643679303536,0.1151693,38320.0,38317.0,0.00302911]
[1643679305137,0.11510072,38320.0,38317.0,0.00302911]
[1643679305336,0.11510072,38320.0,38317.0,0.002]
[1643679305536,0.11510072,38320.0,38317.0,0.00302911]
[1643679306581,0.11510072,38320.0,38317.0,0.002]
[1643679306981,0.11510072,38320.0,38317.0,0.00302911]
[1643679307781,0.11510072,38320.0,38317.0,0.002]
[1643679307982,0.11510072,38320.0,38317.0,0.00302911]
[1643679310138,0.11510072,38320.0,38317.0,0.002]
[1643679310437,0.11510072,38320.0,38318.0,0.065255]
[1643679310739,0.11010072,38320.0,38318.0,0.065255]
[1643679310938,0.06010072,38320.0,38318.0,0.065255]
[1643679312337,0.11010072,38320.0,38318.0,0.065255]
[1643679314087,0.11010072,38320.0,38317.0,0.0030291]
[1643679314984,0.11010072,38320.0,38317.0,0.002]
[1643679315184,0.11010072,38320.0,38318.0,0.065255]
[1643679320535,0.11010072,38320.0,38317.0,0.00300309]
[1643679321181,0.11010072,38320.0,38317.0,0.00191357]
[1643679321383,0.11010072,38320.0,38317.0,0.00291667]
[1643679322082,0.12703966,38320.0,38317.0,0.00291667]
[1643679322282,0.12703966,38320.0,38317.0,0.00191357]
[1643679322482,0.12703966,38320.0,38317.0,0.00294854]
[1643679323486,0.12703966,38320.0,38317.0,0.00191357]
[1643679323687,0.12703966,38320.0,38317.0,0.00294854]
[1643679324746,0.12703966,38320.0,38317.0,0.06717657]
[1643679324939,0.12703966,38320.0,38317.0,0.06821154]
[1643679326039,0.12703966,38320.0,38317.0,0.06820437]
[1643679327041,0.12703966,38320.0,38317.0,0.06717657]
[1643679327242,0.12703966,38320.0,38317.0,0.06820437]
[1643679328346,0.12703966,38320.0,38317.0,0.06717657]
[1643679328598,0.12703966,38320.0,38317.0,0.06820437]
[1643679329502,0.12703966,38320.0,38317.0,0.06717657]
[1643679329699,0.12703966,38320.0,38317.0,0.06820598]
[1643679330701,0.12703966,38320.0,38317.0,0.06717657]
[1643679330902,0.12703966,38320.0,38317.0,0.06820598]
[1643679331906,0.12703966,38320.0,38317.0,0.06717657]
[1643679332107,0.12703966,38320.0,38317.0,0.06820598]
[1643679333134,0.12703966,38320.0,38317.0,0.06717657]
[1643679333334,0.12703966,38320.0,38317.0,0.06820562]
[1643679334137,0.12703966,38320.0,38317.0,0.13346562]
[1643679334337,0.12703966,38320.0,38317.0,0.13243657]
[1643679334536,0.12703966,38320.0,38317.0,0.13346562]
[1643679335539,0.12703966,38320.0,38317.0,0.13243657]
[1643679335739,0.12703966,38320.0,38317.0,0.13346562]
[1643679336681,0.12703966,38320.0,38317.0,0.13243657]
[1643679336882,0.12703966,38320.0,38317.0,0.1334657]
[1643679337882,0.12703966,38320.0,38317.0,0.13243657]
[1643679338082,0.12703966,38320.0,38317.0,0.1334657]
[1643679339082,0.12703966,38320.0,38317.0,0.13243657]
[1643679339284,0.12703966,38320.0,38317.0,0.1334657]
[1643679340439,0.12703966,38320.0,38317.0,0.13243657]
[1643679340633,0.12703966,38320.0,38317.0,0.13346568]
[1643679341634,0.12703966,38320.0,38317.0,0.06820568]
[1643679342436,0.12696303,38320.0,38317.0,0.06820568]
[1643679342733,0.12696303,38320.0,38317.0,0.06717657]
[1643679343033,0.12696303,38320.0,38317.0,0.06820568]
[1643679343887,0.12696303,38320.0,38317.0,0.06717657]
[1643679344087,0.12696303,38320.0,38317.0,0.06820568]
[1643679345196,0.12696303,38320.0,38317.0,0.06717657]
[1643679345391,0.12696303,38320.0,38317.0,0.06820568]
[1643679346290,0.12696303,38320.0,38317.0,0.06717657]
[1643679346491,0.12696303,38320.0,38317.0,0.06820568]
[1643679347093,0.07696303,38320.0,38317.0,0.06820568]
[1643679347333,0.12696303,38320.0,38317.0,0.06820568]
[1643679347535,0.12696303,38320.0,38317.0,0.06717657]
[1643679347737,0.12696303,38320.0,38317.0,0.06820568]
[1643679348733,0.12696303,38320.0,38317.0,0.06717657]
[1643679348935,0.12696303,38320.0,38317.0,0.06820568]
[1643679349937,0.12696303,38320.0,38317.0,0.06717657]
[1643679350138,0.12696303,38320.0,38317.0,0.06820568]
[1643679350345,0.23087286,38323.0,38322.0,0.0011]
[1643679350346,0.22207286,38323.0,38322.0,0.0011]
[1643679350993,0.57312486,38323.0,38322.0,0.0011]
[1643679354745,0.22207286,38323.0,38322.0,0.0011]
[1643679359683,0.15390378,38325.0,38322.0,0.0011]
[1643679359884,0.15390378,38325.0,38322.0,0.06636]
[1643679360590,0.00140659,38326.0,38322.0,0.131605]
[1643679360788,0.17577139,38331.0,38323.0,0.28561177]
[1643679360987,0.5779,38332.0,38323.0,0.28561177]
[1643679361186,0.5779,38332.0,38323.0,0.35086677]
[1643679361386,0.00140661,38326.0,38324.0,0.09530283]
[1643679361686,0.00140661,38326.0,38324.0,0.29103538]
[1643679361986,0.08580548,38332.0,38324.0,0.22579038]
[1643679362240,0.08580548,38332.0,38326.0,0.065244]
[1643679362433,0.35130385,38335.0,38326.0,0.065244]
[1643679362434,0.00140662,38327.0,38326.0,0.065244]
[1643679362633,0.00140662,38327.0,38324.0,0.34449038]
[1643679363234,0.32935593,38335.0,38324.0,0.34449038]
[1643679363437,0.00140662,38327.0,38326.0,0.065244]
[1643679364133,0.00140662,38327.0,38326.0,0.195732]
[1643679364435,0.08489269,38331.0,38327.0,0.06524528]
[1643679364634,0.0014066,38328.0,38327.0,0.13049128]
[1643679365636,0.08489269,38331.0,38327.0,0.13049128]
[1643679365991,0.00126119,38329.0,38327.0,0.13049128]
[1643679366587,0.00126119,38329.0,38327.0,0.06524528]
[1643679366788,0.1998701,38330.0,38324.0,0.183955]
[1643679367188,0.20113128,38330.0,38324.0,0.183955]
[1643679367589,0.24456842,38328.0,38324.0,0.183955]
[1643679367788,0.24456842,38328.0,38324.0,0.065255]
[1643679368389,0.24582963,38328.0,38324.0,0.065255]
[1643679369289,0.24456842,38328.0,38324.0,0.065255]
[1643679369490,0.24582963,38328.0,38324.0,0.065255]
[1643679369743,0.20461062,38327.0,38324.0,0.065255]
[1643679369934,0.20461062,38327.0,38322.0,0.066358]
[1643679370135,0.25651062,38327.0,38322.0,0.066358]
[1643679370337,0.25651062,38327.0,38322.0,0.0011]
[1643679370735,0.3523295,38326.0,38322.0,0.0011]
[1643679370935,0.27438038,38325.0,38322.0,0.0011]
[1643679371139,0.351052,38324.0,38322.0,0.0011]
[1643679371336,0.25182271,38323.0,38322.0,0.0011]
[1643679371540,0.0012775,38326.0,38322.0,0.0011]
[1643679371741,0.22318468,38332.0,38322.0,0.0011]
[1643679371938,0.00127748,38326.0,38322.0,0.0011]
[1643679372139,0.00127748,38326.0,38324.0,0.06524155]
[1643679372738,0.00127748,38326.0,38325.0,0.62975808]
[1643679372941,0.0193264,38331.0,38325.0,0.44500508]
[1643679373139,0.0012775,38327.0,38326.0,0.13047726]
[1643679373793,0.00121247,38327.0,38326.0,0.13047726]
[1643679373988,0.09296623,38329.0,38326.0,0.19571926]
[1643679374189,0.09296623,38329.0,38327.0,0.065242]
[1643679377246,0.09296623,38329.0,38328.0,0.29226775]
[1643679377434,0.09296623,38329.0,38328.0,0.35751074]
[1643679377634,0.09296623,38329.0,38328.0,0.06524299]
[1643679378035,0.09296623,38329.0,38326.0,0.130478]
[1643679379039,0.09448864,38329.0,38326.0,0.130478]
[1643679380036,0.09296623,38329.0,38326.0,0.130478]
[1643679380436,0.09448864,38329.0,38326.0,0.130478]
[1643679381284,0.09296623,38329.0,38326.0,0.130478]
[1643679381484,0.09448864,38329.0,38326.0,0.130478]
[1643679382086,0.00152241,38329.0,38326.0,0.26097294]
[1643679382486,0.31491552,38331.0,38326.0,0.26097294]
[1643679382687,0.0014302,38329.0,38326.0,0.26097294]
[1643679383186,0.0014302,38329.0,38326.0,0.130478]
[1643679383588,0.10306308,38328.0,38326.0,0.130478]
[1643679385137,0.28767162,38331.0,38326.0,0.130478]
[1643679385337,0.00143021,38329.0,38326.0,0.195724]
[1643679386237,0.28767162,38331.0,38326.0,0.130478]
[1643679386437,0.08408886,38329.0,38326.0,0.130478]
[1643679387438,0.08267109,38329.0,38326.0,0.130478]
[1643679387639,0.08408886,38329.0,38326.0,0.130478]
[1643679387838,0.08408886,38329.0,38324.0,0.06525]
[1643679388586,0.08267109,38329.0,38324.0,0.06525]
[1643679388985,0.00141778,38328.0,38324.0,0.06525]
[1643679390194,0.00138231,38328.0,38324.0,0.06525]
[1643679390391,0.00138231,38328.0,38324.0,0.130491]
[1643679390988,0.09336636,38337.0,38324.0,0.33680877]
[1643679391189,0.29124421,38335.0,38324.0,0.45920877]
[1643679391392,0.00138231,38328.0,38324.0,0.252891]
[1643679392341,0.10219698,38333.0,38324.0,0.252891]
[1643679392638,0.00138231,38328.0,38324.0,0.4559419]
[1643679392839,0.00138231,38328.0,38324.0,0.252891]
[1643679393037,0.00138231,38328.0,38324.0,0.18765]
[1643679393639,0.00138759,38328.0,38324.0,0.18765]
[1643679394639,0.10219698,38333.0,38324.0,0.18765]
[1643679394839,0.00138759,38328.0,38324.0,0.18765]
[1643679395441,0.00138759,38328.0,38325.0,0.20161399]
[1643679395845,0.25747431,38340.0,38325.0,0.20161399]
[1643679396118,0.08173711,38340.0,38325.0,0.22318468]
[1643679396319,0.00138759,38328.0,38325.0,0.22318468]
[1643679396518,0.00138759,38328.0,38325.0,0.130459]
[1643679396720,0.32935593,38345.0,38327.0,0.75]
[1643679396919,0.08034881,38345.0,38330.0,0.260869]
[1643679397125,0.08034881,38347.0,38331.0,0.33978468]
[1643679397420,0.08034881,38347.0,38335.0,0.065215]
[1643679397619,0.08034881,38347.0,38342.0,0.23146797]
[1643679397819,0.351052,38346.0,38342.0,0.23146797]
[1643679398018,0.08817811,38346.0,38342.0,0.23146797]
[1643679399120,0.08817811,38346.0,38342.0,0.29668297]
[1643679399938,0.08970198,38346.0,38342.0,0.29668297]
[1643679400338,0.08970198,38346.0,38342.0,0.23146797]
[1643679400541,0.25636091,38345.0,38336.0,0.1211]
[1643679401139,0.08817811,38346.0,38336.0,0.1211]
[1643679401341,0.08970198,38346.0,38336.0,0.1211]
[1643679401641,0.08970198,38346.0,38338.0,0.31874396]
[1643679401842,0.08970198,38346.0,38339.0,0.28101889]
[1643679402041,0.08817811,38346.0,38339.0,0.28101889]
[1643679402244,0.08817811,38346.0,38339.0,0.065219]
[1643679402441,0.0015239,38344.0,38339.0,0.065219]
[1643679403242,0.08817811,38346.0,38339.0,0.065219]
[1643679403493,0.00152391,38343.0,38339.0,0.065219]
[1643679404292,0.00152391,38343.0,38338.0,0.31874396]
[1643679404492,0.08817811,38346.0,38338.0,0.31874396]
[1643679404694,0.00152392,38343.0,38338.0,0.31874396]
[1643679405693,0.08817811,38346.0,38338.0,0.31874396]
[1643679405893,0.08817811,38346.0,38337.0,0.21650578]
[1643679405894,0.00152392,38342.0,38337.0,0.21650578]
[1643679406095,0.00152392,38342.0,38335.0,0.1206]
[1643679406894,0.0519,38342.0,38337.0,0.24504411]
[1643679407094,0.13432618,38345.0,38339.0,0.0979336]
[1643679407342,0.00152396,38340.0,38339.0,0.0979336]
[1643679408140,0.18252908,38350.0,38339.0,0.0979336]
[1643679408341,0.03923419,38351.0,38339.0,0.0979336]
[1643679408342,0.00138456,38341.0,38339.0,0.0979336]
[1643679408740,0.00138456,38341.0,38339.0,0.1631486]
[1643679409243,0.00138456,38341.0,38339.0,0.0979336]
[1643679409742,0.00138455,38342.0,38339.0,0.0979336]
[1643679410545,0.48627222,38346.0,38339.0,0.0979336]
[1643679410744,0.00138455,38342.0,38339.0,0.0979336]
[1643679411792,0.25213229,38346.0,38339.0,0.0979336]
[1643679411992,0.2302403,38346.0,38340.0,0.065223]
[1643679412194,0.00141274,38342.0,38340.0,0.065223]
[1643679412996,0.28629705,38348.0,38340.0,0.065223]
[1643679413196,0.00141273,38343.0,38340.0,0.065223]
[1643679414197,0.28629705,38348.0,38340.0,0.065223]
[1643679414398,0.00141273,38343.0,38338.0,0.130441]
[1643679414600,0.05331273,38343.0,38337.0,0.24504411]
[1643679414840,0.05331273,38343.0,38334.0,0.76903949]
[1643679415040,0.05331273,38343.0,38334.0,0.63859449]
[1643679415443,0.0519,38343.0,38339.0,0.07679363]
[1643679415840,0.00141276,38341.0,38339.0,0.07679363]
[1643679416740,0.0519,38343.0,38339.0,0.07679363]
[1643679416942,0.0014064,38342.0,38339.0,0.07679363]
[1643679417441,0.0014064,38342.0,38339.0,0.27245409]
[1643679417841,0.25985525,38346.0,38339.0,0.27245409]
[1643679418045,0.02181656,38346.0,38339.0,0.27245409]
[1643679418241,0.0014064,38342.0,38339.0,0.27245409]
[1643679418486,0.0014064,38342.0,38340.0,0.06522]
[1643679419288,0.23439705,38348.0,38340.0,0.06522]
[1643679419289,0.20001784,38347.0,38340.0,0.06522]
[1643679419487,0.00126108,38343.0,38340.0,0.06522]